bitfinex/quotes_SOLUSD_20241007
["timestamp","ask_amount","ask_price","bid_price","bid_amount"]
[1728315571398,6.6844,149.6,149.57,6.6854]
[1728315571597,6.6849,149.59,149.56,16.7149]
[1728315572114,6.6849,149.59,149.55,28.03561331]
[1728315572310,16.7102,149.61,149.54,0.843952]
[1728315572500,6.6858,149.57,149.54,0.843952]
[1728315572894,6.6855,149.58,149.54,7.531052]
[1728315575424,23.776884,149.6,149.54,0.843952]
[1728315575715,6.6857,149.58,149.54,7.531052]
[1728315576108,6.6858,149.57,149.54,0.843952]
[1728315577209,15.507,149.67,149.55,22.68630879]
[1728315577412,6.6836,149.62,149.58,6.6852]
[1728315577709,6.6836,149.62,149.57,38.06331331]
[1728315577710,6.6832,149.63,149.59,6.6848]
[1728315577905,6.6836,149.62,149.58,6.6853]
[1728315586729,23.776884,149.64,149.56,6.5249]
[1728315586926,23.776884,149.64,149.56,13.2111]
[1728315586927,6.6847,149.6,149.56,13.2111]
[1728315587236,6.6852,149.59,149.56,6.5249]
[1728315587419,6.6852,149.59,149.54,24.247852]
[1728315588527,6.6854,149.58,149.54,24.247852]
[1728315589333,6.6858,149.57,149.54,17.561052]
[1728315589536,16.7102,149.61,149.54,0.843952]
[1728315589735,6.6863,149.56,149.54,0.843952]
[1728315591826,6.6867,149.55,149.54,0.843952]
[1728315592747,30.463584,149.55,149.54,0.843952]
[1728315596158,52.309984,149.55,149.54,0.843952]
[1728315596359,52.309984,149.55,149.45,15.929]
[1728315596360,6.6899,149.48,149.45,15.929]
[1728315596543,23.776884,149.52,149.45,15.929]
[1728315596753,6.6903,149.47,149.45,15.929]
[1728315597458,23.776884,149.5,149.45,15.929]
[1728315597645,6.6899,149.48,149.45,15.929]
[1728315598855,23.776884,149.5,149.45,15.929]
[1728315598856,6.6903,149.47,149.45,15.929]
[1728315599262,6.6907,149.46,149.44,6.4213]
[1728315599433,6.6907,149.46,149.42,16.7306]
[1728315600869,30.465884,149.5,149.45,6.6909]
[1728315601069,30.465884,149.5,149.44,16.7283]
[1728315601234,6.6901,149.48,149.44,23.4195]
[1728315602161,6.6903,149.47,149.44,16.7283]
[1728315602364,6.6903,149.47,149.43,28.04111331]
[1728315602546,6.6899,149.48,149.43,28.04111331]
[1728315602753,6.6894,149.49,149.44,6.6912]
[1728315602955,6.97444338,149.52,149.45,21.34911331]
[1728315603253,6.6885,149.51,149.46,6.6906]
[1728315603470,6.6885,149.51,149.47,6.6902]
[1728315603644,6.6885,149.51,149.45,38.07651331]
[1728315603645,6.6885,149.51,149.46,6.6906]
[1728315604263,6.97360987,149.54,149.47,21.34911331]
[1728315604452,6.97360987,149.54,149.49,6.6891]
[1728315604757,6.687,149.55,149.49,21.34911331]
[1728315604957,22.5529,149.59,149.52,6.6879]
[1728315604958,6.6863,149.56,149.52,6.6879]
[1728315605264,6.6863,149.56,149.51,44.75811331]
[1728315605663,6.6863,149.56,149.51,38.06971331]
[1728315605854,6.6863,149.56,149.52,6.6878]
[1728315606174,6.97248683,149.57,149.52,6.6878]
[1728315606470,6.6863,149.56,149.52,6.6879]
[1728315607556,6.6859,149.57,149.53,6.6875]
[1728315607745,6.96362873,149.6,149.54,6.6871]
[1728315608066,6.6845,149.6,149.55,8.02379057]
[1728315608273,6.6845,149.6,149.55,6.6866]
[1728315608465,6.6854,149.58,149.54,15.1003]
[1728315608660,6.686,149.57,149.53,23.0307]
[1728315609463,6.686,149.57,149.53,29.7182]
[1728315610685,6.6855,149.58,149.54,6.687]
[1728315610981,6.685,149.59,149.55,29.37274442]
[1728315611271,6.685,149.59,149.55,28.03551331]
[1728315611662,6.96157591,149.62,149.58,6.6853]
[1728315611843,256.0,149.7,149.62,6.6833]
[1728315611844,6.6821,149.66,149.62,6.6833]
[1728315612049,1.16011138,149.7,149.63,28.03201331]
[1728315612050,6.97260835,149.67,149.63,28.03201331]
[1728315612244,6.97260835,149.67,149.64,1.33645942]
[1728315612473,6.681,149.68,149.64,1.33645942]
[1728315612652,6.97768233,149.71,149.63,21.34911331]
[1728315612853,6.97768233,149.71,149.6,6.1225]
[1728315613051,6.97768233,149.71,149.64,6.6826]
[1728315613052,6.681,149.68,149.64,6.6826]
[1728315613273,6.97768233,149.71,149.64,6.6826]
[1728315613451,6.6805,149.69,149.64,6.6826]
[1728315614144,6.97768233,149.71,149.63,38.05631331]
[1728315614372,6.6815,149.67,149.63,38.05631331]
[1728315615387,6.6809,149.68,149.64,1.33641548]
[1728315615704,6.97768233,149.71,149.64,1.33641548]
[1728315615705,6.97768233,149.71,149.65,21.34911331]
[1728315615903,6.6814,149.67,149.64,15.0711]
[1728315617589,6.6809,149.68,149.64,15.0711]
[1728315617801,6.6805,149.69,149.65,22.68538367]
[1728315618107,6.97941607,149.72,149.65,22.68538367]
[1728315618779,6.6808,149.69,149.65,21.34911331]
[1728315622711,6.6818,149.66,149.63,21.34911331]
[1728315623022,6.6818,149.66,149.6,22.8332]
[1728315623023,6.6823,149.65,149.61,44.07331331]
[1728315623215,6.6823,149.65,149.61,22.7242]
[1728315624589,6.6819,149.66,149.61,22.7242]
[1728315624783,6.681,149.68,149.64,6.6823]
[1728315624996,6.6808,149.69,149.64,6.6823]
[1728315625198,6.6808,149.69,149.63,21.34911331]
[1728315625199,6.6814,149.67,149.63,21.34911331]
[1728315625398,6.681,149.68,149.63,28.03181331]
[1728315625912,6.681,149.68,149.64,6.6825]
[1728315626096,6.6801,149.7,149.65,21.34911331]
[1728315626286,6.97941607,149.72,149.65,21.34911331]
[1728315626801,6.97941607,149.72,149.65,28.03091331]
[1728315627003,6.6807,149.69,149.65,28.03091331]
[1728315627203,6.6807,149.69,149.65,21.34911331]
[1728315627409,6.6807,149.69,149.65,28.03131331]
[1728315627714,6.6807,149.69,149.65,21.34911331]
[1728315629609,6.6801,149.7,149.65,29.36714104]
[1728315629815,6.6801,149.7,149.66,6.6817]
[1728315630197,23.776884,149.72,149.66,6.6817]
[1728315630394,6.97503321,149.73,149.68,16.0506]
[1728315630592,6.6786,149.73,149.69,6.6803]
[1728315630800,6.6796,149.71,149.68,32.7524]
[1728315631325,6.6792,149.72,149.68,39.4333]
[1728315636143,57.167584,149.75,149.64,15.634]
[1728315636357,6.6814,149.67,149.64,15.634]
[1728315637658,23.776884,149.7,149.62,23.0706]
[1728315637842,6.6822,149.65,149.62,23.0706]
[1728315638764,6.6819,149.66,149.62,29.7541]
[1728315642512,6.97940705,149.69,149.6,15.9983]
[1728315642836,23.776884,149.68,149.6,15.9983]
[1728315643138,6.6831,149.63,149.6,15.9983]
[1728315643439,6.6836,149.62,149.6,15.9983]
[1728315643643,6.6836,149.62,149.58,13.3217]
[1728315643945,6.6827,149.64,149.6,23.3949]
[1728315644345,23.776884,149.63,149.6,16.7105]
[1728315644823,6.6827,149.64,149.6,23.3949]
[1728315645027,6.97940705,149.69,149.61,21.34911331]
[1728315645225,6.6822,149.66,149.61,28.03291331]
[1728315645451,6.6818,149.66,149.62,23.3919]
[1728315645826,6.6812,149.68,149.63,29.36826184]
[1728315646024,6.97940705,149.69,149.63,29.36826184]
[1728315646247,16.6998,149.71,149.63,28.03181331]
[1728315646553,6.681,149.68,149.63,28.03181331]
[1728315646751,6.97669519,149.7,149.63,28.03181331]
[1728315646752,6.6813,149.67,149.63,28.03181331]
[1728315647947,6.681,149.68,149.64,6.6823]
[1728315648134,30.457384,149.69,149.65,6.6819]
[1728315649148,6.681,149.68,149.64,23.389]
[1728315651463,23.776884,149.69,149.62,15.0746]
[1728315651755,6.6831,149.63,149.59,6.6848]
[1728315652262,6.6836,149.62,149.58,45.1923]
[1728315652448,16.7046,149.66,149.58,21.7945]
[1728315652449,6.6842,149.61,149.58,21.7945]
[1728315653439,6.6832,149.63,149.59,8.02162219]
[1728315653766,6.6832,149.63,149.59,6.6848]
[1728315660351,23.776884,149.65,149.58,21.7945]
[1728315660672,6.97791635,149.66,149.61,21.34911331]
[1728315660849,6.6815,149.67,149.63,6.683]
[1728315661152,16.7021,149.69,149.63,6.683]
[1728315661153,23.67967466,149.69,149.63,6.683]
[1728315661353,6.6815,149.67,149.63,6.683]
[1728315661752,6.6813,149.68,149.64,6.6826]
[1728315662670,6.97923281,149.71,149.64,6.6826]
[1728315662972,6.97923281,149.71,149.63,38.05681331]
[1728315663174,6.97923281,149.71,149.68,6.6806]
[1728315663378,6.6788,149.73,149.69,6.6804]
[1728315663563,6.6792,149.72,149.68,6.6807]
[1728315664874,6.6787,149.73,149.69,6.6804]
[1728315665563,6.6787,149.73,149.68,6.6808]
[1728315665754,6.6787,149.73,149.69,1.33589733]
[1728315666077,6.6782,149.74,149.7,8.0157504]
[1728315666263,6.6787,149.73,149.69,44.73031331]
[1728315666462,6.6783,149.74,149.7,6.6799]
[1728315667067,6.6783,149.74,149.69,44.73021331]
[1728315667887,6.97661766,149.77,149.69,38.04991331]
[1728315668186,6.6777,149.76,149.71,28.02821331]
[1728315668391,6.6777,149.76,149.72,1.33562595]
[1728315668556,13.65361766,149.77,149.72,8.01472595]
[1728315668760,6.6766,149.78,149.73,28.02741331]
[1728315668952,6.6766,149.78,149.74,1.33541926]
[1728315669482,6.6766,149.78,149.73,38.04541331]
[1728315669650,6.6766,149.78,149.74,8.01328532]
[1728315669973,6.6766,149.78,149.74,6.6779]
[1728315671947,6.97510023,149.8,149.73,38.04541331]
[1728315672161,6.6779,149.75,149.72,6.587]
[1728315673152,6.6774,149.76,149.72,6.587]
[1728315673771,6.6779,149.75,149.72,6.587]
[1728315673971,6.6774,149.76,149.72,13.266]
[1728315674174,6.6769,149.77,149.73,29.36320424]
[1728315674384,6.6761,149.79,149.75,21.34911331]
[1728315674680,6.6761,149.79,149.75,28.02681331]
[1728315674855,6.6761,149.79,149.75,21.34911331]
[1728315675182,6.6764,149.78,149.75,21.34911331]
[1728315675354,6.6764,149.78,149.74,23.3733]
[1728315675550,6.6771,149.77,149.73,28.02761331]
[1728315675881,6.6771,149.77,149.72,6.587]
[1728315676187,6.6771,149.77,149.73,28.02761331]
[1728315678483,6.6768,149.78,149.73,28.02761331]
[1728315680353,6.6768,149.78,149.73,21.34911331]
[1728315680556,6.6768,149.78,149.74,6.6781]
[1728315688290,6.6786,149.74,149.72,6.587]
[1728315688591,23.776884,149.81,149.72,6.587]
[1728315688592,6.677,149.77,149.73,1.33551362]
[1728315688780,6.6765,149.78,149.74,6.6778]
[1728315688965,6.6761,149.79,149.75,28.02661331]
[1728315689505,6.6772,149.77,149.73,28.02731331]
[1728315689701,23.776884,149.81,149.72,6.587]
[1728315689874,6.6792,149.72,149.7,16.0328]
[1728315690582,23.776884,149.75,149.68,6.0891]
[1728315690778,6.6798,149.71,149.68,6.0891]
[1728315691174,23.776884,149.75,149.66,15.1882]
[1728315691175,16.6958,149.74,149.66,15.1882]
[1728315691398,23.776884,149.73,149.66,15.1882]
[1728315691805,6.6805,149.69,149.66,15.1882]
[1728315692480,6.6801,149.7,149.66,15.1882]
[1728315694386,23.776884,149.73,149.64,6.1547]
[1728315694585,6.6815,149.67,149.64,6.1547]
[1728315695311,6.6818,149.66,149.62,38.8637]
[1728315695816,33.2755,149.72,149.62,38.8637]
[1728315695817,6.6826,149.65,149.62,15.4717]
[1728315696103,6.6822,149.65,149.62,15.4717]
[1728315696482,6.683,149.64,149.6,6.1146]
[1728315697288,16.7027,149.68,149.6,6.1146]
[1728315697487,6.6828,149.64,149.6,6.1146]
[1728315699322,6.6828,149.64,149.59,44.74551331]
[1728315700517,16.7027,149.68,149.59,21.34911331]
[1728315700518,6.6836,149.62,149.59,21.34911331]
[1728315702092,16.7051,149.66,149.56,22.8723]
[1728315702297,6.6857,149.58,149.54,15.5546]
[1728315702824,6.6859,149.57,149.54,15.5546]
[1728315703317,16.7108,149.61,149.52,12.9786]
[1728315703489,16.7108,149.61,149.52,6.2907]
[1728315703689,6.6859,149.57,149.53,6.6875]
[1728315703901,6.6854,149.58,149.53,6.6875]
[1728315704523,6.6859,149.57,149.53,6.6875]
[1728315705909,6.6847,149.6,149.56,6.6862]
[1728315706226,23.776884,149.61,149.57,28.03481331]
[1728315706727,23.776884,149.61,149.58,6.6852]
[1728315707513,6.6845,149.6,149.56,23.4013]
[1728315708211,6.685,149.59,149.55,21.34911331]
[1728315708422,23.776884,149.61,149.55,21.34911331]
[1728315708423,6.6845,149.6,149.56,6.6862]
[1728315708811,6.6841,149.61,149.57,6.6857]
[1728315710635,16.7073,149.64,149.55,38.06541331]
[1728315710840,6.6849,149.6,149.55,38.06541331]
[1728315711510,6.6841,149.61,149.56,6.6858]
[1728315711718,6.6841,149.61,149.55,38.06541331]
[1728315712734,6.6841,149.61,149.57,6.6855]
[1728315713032,6.6828,149.64,149.59,28.03361331]
[1728315713355,16.4168013,149.7,149.61,6.6839]
[1728315713633,6.6818,149.66,149.62,23.3918]
[1728315714007,15.2558,149.7,149.62,16.7086]
[1728315714213,6.6825,149.65,149.61,21.34911331]
[1728315714514,6.6825,149.65,149.61,28.03301331]
[1728315716040,23.776884,149.68,149.61,21.34911331]
[1728315716233,6.6819,149.66,149.61,28.03281331]
[1728315716931,6.6811,149.68,149.64,6.6826]
[1728315717233,6.6811,149.68,149.64,8.01896901]
[1728315717735,15.2558,149.7,149.64,1.33636901]
[1728315717916,6.6813,149.67,149.64,1.33636901]
[1728315718253,6.6813,149.67,149.63,44.73971331]
[1728315718737,6.3813,149.67,149.63,44.73971331]
[1728315718915,6.681,149.68,149.64,1.33638596]
[1728315719317,23.776884,149.67,149.64,1.33638596]
[1728315719516,6.6814,149.67,149.63,44.73971331]
[1728315720547,23.776884,149.69,149.63,38.05671331]
[1728315720836,6.6809,149.68,149.64,8.01894596]
[1728315721138,6.6815,149.67,149.63,23.3906]
[1728315722525,23.776884,149.69,149.63,16.7076]
[1728315722731,23.776884,149.69,149.62,15.6913]
[1728315722732,6.6819,149.66,149.62,22.3746]
[1728315722926,23.776884,149.69,149.62,22.3746]
[1728315723167,6.6815,149.67,149.63,6.6831]
[1728315724834,30.457484,149.69,149.64,1.33634785]
[1728315725436,30.457484,149.69,149.65,28.03101331]
[1728315725637,30.457484,149.69,149.66,1.33621686]
[1728315726148,23.776884,149.69,149.65,21.34911331]
[1728315726327,6.6809,149.68,149.64,6.6825]
[1728315726841,6.6816,149.67,149.63,23.3906]
[1728315727743,6.681,149.68,149.64,8.01891493]
[1728315728338,6.681,149.68,149.64,6.6826]
[1728315728830,6.681,149.68,149.65,1.3362393]
[1728315729032,6.681,149.68,149.64,6.6826]
[1728315729939,6.6805,149.69,149.65,8.0183399]
[1728315730141,6.6809,149.68,149.65,6.6821]
[1728315730327,6.6809,149.68,149.63,38.05671331]
[1728315730533,6.6809,149.68,149.64,6.6825]
[1728315731055,23.776884,149.68,149.62,15.6913]
[1728315731664,6.6828,149.64,149.6,23.3948]
[1728315731953,6.6828,149.64,149.6,23.3947]
[1728315732154,6.6834,149.63,149.59,34.55001331]
[1728315732344,23.776884,149.66,149.59,27.86511331]
[1728315732546,6.6817,149.67,149.62,18.70897929]
[1728315732731,6.6818,149.66,149.63,1.33646974]
[1728315733049,6.6818,149.66,149.62,18.70897929]
[1728315733747,6.6822,149.65,149.62,12.02557929]
[1728315735756,6.6822,149.65,149.61,23.3933]
[1728315735959,6.6822,149.65,149.62,12.02557929]
[1728315740249,23.776884,149.69,149.63,1.33658699]
[1728315740447,6.6819,149.66,149.63,13.36216628]
[1728315740766,6.6814,149.67,149.63,18.70857929]
[1728315744270,16.7005,149.7,149.63,12.02557929]
[1728315744445,6.6818,149.66,149.63,12.02557929]
[1728315745370,16.7005,149.7,149.61,16.7095]
[1728315745558,6.6824,149.65,149.62,12.02557929]
[1728315746175,6.6831,149.63,149.62,12.02557929]
[1728315746358,6.6827,149.64,149.62,12.02557929]
[1728315746751,6.6824,149.65,149.62,12.02557929]
[1728315748162,23.776884,149.67,149.6,12.02557929]
[1728315748366,6.6831,149.63,149.6,12.02557929]
[1728315748780,16.7047,149.66,149.59,6.516]
[1728315748980,23.776884,149.65,149.58,16.4841]
[1728315750079,6.6841,149.61,149.58,16.4841]
[1728315751175,23.776884,149.63,149.58,16.4841]
[1728315751391,6.6845,149.6,149.58,16.4841]
[1728315751678,6.6841,149.61,149.58,16.4841]
[1728315752676,23.776884,149.61,149.55,18.41887929]
[1728315752863,6.6853,149.59,149.55,18.41887929]
[1728315753065,6.6854,149.58,149.55,18.41887929]
[1728315753451,6.6852,149.59,149.55,25.10547929]
[1728315753755,40.483284,149.65,149.57,12.02557929]
[1728315753959,6.6841,149.61,149.59,12.02557929]
[1728315754160,40.483284,149.65,149.59,12.02557929]
[1728315754161,6.6836,149.62,149.59,12.02557929]
[1728315754474,6.6836,149.62,149.59,13.3623752]
[1728315754672,6.6836,149.62,149.59,12.3623752]
[1728315755072,6.6841,149.61,149.59,11.02557929]
[1728315755569,6.6845,149.6,149.57,28.73967929]
[1728315756378,6.6845,149.6,149.57,12.02557929]
[1728315756581,6.685,149.59,149.57,12.02557929]
[1728315756778,23.776884,149.62,149.57,12.02557929]
[1728315756984,6.6828,149.64,149.61,12.02557929]
[1728315757282,6.6821,149.66,149.63,12.02557929]
[1728315757580,6.6821,149.66,149.65,12.02557929]
[1728315758178,16.6983,149.72,149.65,12.02557929]
[1728315758378,6.68,149.7,149.68,12.02557929]
[1728315758769,6.68,149.7,149.66,26.78807327]
[1728315758983,6.6805,149.69,149.66,18.77007202]
[1728315759189,6.681,149.68,149.64,42.15877202]
[1728315759658,6.531,149.68,149.64,42.15877202]
[1728315760288,6.6805,149.69,149.64,42.15877202]
[1728315761792,6.6812,149.68,149.64,35.47627202]
[1728315762088,6.6812,149.68,149.64,42.15897202]
[1728315762292,6.6814,149.67,149.62,18.77007202]
[1728315762466,6.6814,149.67,149.62,25.45357202]
[1728315762661,6.6819,149.66,149.62,25.45357202]
[1728315762863,23.776884,149.65,149.56,26.16660985]
[1728315763091,6.6849,149.59,149.56,22.6753]
[1728315763288,23.776884,149.62,149.56,22.6753]
[1728315763492,6.6845,149.6,149.56,22.6753]
[1728315764370,23.776884,149.62,149.56,22.6753]
[1728315764571,23.776884,149.62,149.56,16.2772]
[1728315764883,6.6855,149.58,149.53,18.77007202]
[1728315765063,6.685,149.59,149.54,6.6868]
[1728315765262,23.776884,149.62,149.55,6.6865]
[1728315765463,6.6846,149.6,149.55,6.6865]
[1728315767792,6.6846,149.6,149.56,6.6862]
[1728315769480,6.6846,149.6,149.55,16.7164]
[1728315769679,6.6846,149.6,149.55,23.4029]
[1728315770376,6.6836,149.62,149.58,6.6853]
[1728315776895,16.7053,149.66,149.57,16.7142]
[1728315777100,6.6845,149.6,149.57,16.7142]
[1728315777410,23.776884,149.63,149.57,16.7142]
[1728315777620,6.684,149.61,149.57,23.3999]
[1728315781510,6.6849,149.6,149.56,18.7176108]
[1728315781680,6.6851,149.59,149.55,18.7180108]
[1728315782605,6.6858,149.57,149.53,6.6872]
[1728315782806,23.776884,149.61,149.53,6.6872]
[1728315782986,6.6862,149.56,149.53,6.6872]
[1728315783306,23.776884,149.63,149.52,38.19812065]
[1728315783600,6.6868,149.55,149.52,34.7068108]
[1728315783906,6.6854,149.58,149.54,18.7185108]
[1728315784099,6.6854,149.58,149.55,1.33713937]
[1728315784287,23.776884,149.6,149.52,34.7068108]
[1728315784483,6.6866,149.56,149.52,41.3947108]
[1728315785705,6.6876,149.53,149.5,12.0315108]
[1728315791078,6.6876,149.53,149.46,3.49130985]
[1728315791079,23.776884,149.52,149.46,3.49130985]
[1728315791284,23.776884,149.52,149.44,12.0315108]
[1728315791506,6.6905,149.47,149.44,12.0315108]
[1728315792093,6.6907,149.46,149.42,21.9406]
[1728315792407,6.6915,149.45,149.42,15.2485]
[1728315792606,6.6915,149.45,149.42,16.58680667]
[1728315792799,6.6908,149.46,149.43,12.0315108]
[1728315793193,6.6903,149.47,149.43,13.36969636]
[1728315793483,6.6899,149.48,149.45,12.0315108]
[1728315793687,15.6722,149.53,149.47,12.0315108]
[1728315793880,16.7175,149.55,149.49,12.0315108]
[1728315793881,6.6886,149.51,149.49,12.0315108]
[1728315794293,6.6883,149.52,149.49,12.0315108]
[1728315794691,6.6876,149.53,149.48,1.33776063]
[1728315794992,6.6876,149.53,149.49,6.6894]
[1728315795192,22.4698,149.57,149.47,16.7253]
[1728315795394,6.6882,149.52,149.48,6.6897]
[1728315795588,22.4698,149.57,149.47,16.7253]
[1728315795809,6.6882,149.52,149.47,23.4154]
[1728315796016,23.776884,149.55,149.48,6.6896]
[1728315796205,6.6877,149.53,149.48,6.6896]
[1728315797112,6.688,149.52,149.48,6.6896]
[1728315799109,6.6877,149.53,149.48,6.6896]
[1728315799530,22.536,149.61,149.49,1.33768056]
[1728315799711,6.6852,149.59,149.55,6.6864]
[1728315800018,6.6861,149.57,149.53,16.7184]
[1728315800597,22.536,149.61,149.53,23.4056]
[1728315800792,16.2011,149.61,149.54,6.687]
[1728315801005,16.2011,149.61,149.53,16.7184]
[1728315801494,6.6875,149.54,149.5,23.4102]
[1728315801690,6.6875,149.54,149.5,16.7215]
[1728315801908,16.714,149.58,149.48,29.0678]
[1728315802116,6.6877,149.53,149.48,29.0678]
[1728315802808,6.6877,149.53,149.49,6.6893]
[1728315803200,6.6872,149.54,149.5,6.6888]
[1728315803399,23.776884,149.57,149.49,18.81974555]
[1728315803600,66.3327,149.61,149.52,6.6879]
[1728315803601,6.6867,149.56,149.52,6.6879]
[1728315803809,6.6859,149.57,149.53,6.6874]
[1728315804315,6.6854,149.58,149.54,8.02422307]
[1728315804625,6.6854,149.58,149.54,6.687]
[1728315805008,6.6854,149.58,149.53,23.4062]
[1728315807522,23.776884,149.6,149.53,16.7187]
[1728315807829,6.6863,149.56,149.53,16.7187]
[1728315808623,6.6863,149.56,149.52,6.6879]
[1728315808996,6.6859,149.57,149.53,6.6876]
[1728315809197,6.6859,149.57,149.5,16.7217]
[1728315809429,6.6859,149.57,149.52,6.6879]
[1728315809627,6.6863,149.56,149.52,6.6879]
[1728315810425,6.6863,149.56,149.53,1.33735715]
[1728315810930,23.776884,149.6,149.49,18.81974555]
[1728315811109,23.776884,149.6,149.52,16.7199]
[1728315811425,6.6863,149.56,149.52,23.4078]
[1728315813032,6.6859,149.57,149.53,6.6875]
[1728315814702,6.6865,149.56,149.52,23.4078]
[1728315815110,6.6867,149.55,149.51,6.6883]
[1728315815513,6.6864,149.56,149.52,6.688]
[1728315816419,6.6859,149.57,149.53,6.6875]
[1728315816632,6.6859,149.57,149.53,8.02485858]
[1728315817630,6.6859,149.57,149.54,1.33728706]
[1728315818832,6.6859,149.57,149.54,8.02438706]
[1728315819534,6.6855,149.58,149.54,8.02438706]
[1728315819720,6.6851,149.59,149.55,8.02386022]
[1728315820516,16.2011,149.61,149.55,18.05386022]
[1728315820818,6.6847,149.6,149.56,6.6861]
[1728315821009,6.6853,149.59,149.55,23.4032]
[1728315823739,6.6861,149.57,149.53,6.6874]
[1728315824123,6.6861,149.57,149.52,16.7195]
[1728315824124,6.6864,149.56,149.52,23.4074]
[1728315826427,23.776884,149.6,149.53,6.6875]
[1728315826428,6.686,149.57,149.53,6.6875]
[1728315830031,6.686,149.57,149.54,6.6871]
[1728315830551,6.686,149.57,149.53,6.6875]
[1728315830729,6.6876,149.53,149.49,16.7229]
[1728315830921,6.6875,149.54,149.49,16.7229]
[1728315831238,30.462984,149.57,149.53,6.6873]
[1728315831449,6.6866,149.56,149.52,23.4079]
[1728315832136,23.776884,149.57,149.52,16.72]
[1728315832342,6.6876,149.53,149.49,23.4119]
[1728315832730,23.776884,149.57,149.49,16.7227]
[1728315832938,23.776884,149.54,149.46,16.726]
[1728315833148,6.6892,149.5,149.46,23.4166]
[1728315833354,6.6892,149.5,149.45,3.49130985]
[1728315833355,6.6895,149.49,149.45,6.691]
[1728315833532,6.6895,149.49,149.44,25.01140985]
[1728315833533,6.689,149.5,149.46,6.6907]
[1728315834138,6.6885,149.51,149.47,6.6902]
[1728315834739,40.494984,149.54,149.47,6.6902]
[1728315834948,6.6884,149.52,149.47,6.6902]
[1728315835138,6.6884,149.52,149.45,16.7274]
[1728315835461,6.6884,149.52,149.48,6.6898]
[1728315835664,6.6889,149.51,149.46,6.6907]
[1728315836260,40.494984,149.54,149.46,6.6907]
[1728315836429,16.7205,149.52,149.45,3.49130985]
[1728315836862,6.6895,149.49,149.45,3.49130985]
[1728315837352,23.776884,149.51,149.45,3.49130985]
[1728315837648,23.776884,149.51,149.43,3.49130985]
[1728315837649,6.6911,149.46,149.43,3.49130985]
[1728315837853,6.6911,149.46,149.42,16.7306]
[1728315837854,6.6911,149.46,149.42,20.22190985]
[1728315838554,6.6913,149.45,149.42,20.22190985]
[1728315838929,6.6913,149.45,149.42,3.49130985]
[1728315839153,6.6913,149.45,149.41,29.1038554]
[1728315840342,6.6907,149.46,149.42,6.6925]
[1728315840759,6.6907,149.46,149.42,10.18380985]
[1728315841162,6.6907,149.46,149.42,6.6925]
[1728315841461,6.6918,149.44,149.41,3.59130985]
[1728315841653,23.776884,149.47,149.41,3.59130985]
[1728315841844,6.6924,149.43,149.41,0.1]
[1728315842041,16.725,149.48,149.41,0.1]
[1728315842246,6.6906,149.47,149.42,6.6922]
[1728315842453,6.6906,149.47,149.43,1.33817317]
[1728315844752,6.4362,149.52,149.43,16.7298]
[1728315844957,6.6897,149.49,149.45,6.691]
[1728315845263,6.6897,149.49,149.44,6.6915]
[1728315846341,6.6897,149.49,149.43,35.54954555]
[1728315846342,6.6897,149.49,149.45,6.6911]
[1728315846965,6.6901,149.48,149.44,6.6915]
[1728315847175,40.497284,149.52,149.43,42.24144555]
[1728315847466,6.6899,149.48,149.44,6.6915]
[1728315850263,6.6894,149.49,149.45,6.6911]
[1728315850466,6.689,149.5,149.46,6.6906]
[1728315850665,6.6886,149.51,149.47,6.6899]
[1728315850960,6.6896,149.49,149.45,42.23844555]
[1728315851470,6.6886,149.51,149.47,6.6902]
[1728315851763,6.6886,149.51,149.45,35.54744555]
[1728315851946,6.6886,149.51,149.47,6.6903]
[1728315852143,6.689,149.5,149.46,6.6906]
[1728315853243,6.6886,149.51,149.47,6.69]
[1728315853582,15.14,149.57,149.49,18.81974555]